fUSD/lending_fUSD_20250610
["ID","MTS","AMOUNT","RATE_DAILY","PERIOD"]
[365263424,1749569442354,-490.0,0.00016602,2]
[365263426,1749569442364,-490.0,0.00016602,2]
[365263428,1749569442374,-490.0,0.00016602,2]
[365263430,1749569442384,-600.59,0.00016602,2]
[365263432,1749569442393,-490.0,0.00016602,2]
[365263434,1749569442402,-191.520001,0.00016602,2]
[365263436,1749569442412,-730.91,0.00016602,2]
[365263438,1749569442422,-734.85,0.00016602,2]
[365263440,1749569442432,-490.0,0.00016602,2]
[365263442,1749569442441,-491.44,0.00016602,2]
[365263444,1749569442450,-490.0,0.00016602,2]
[365263446,1749569442460,-201.85,0.00016602,2]
[365263448,1749569442470,-490.0,0.00016602,2]
[365263450,1749569442481,-490.0,0.00016602,2]
[365263452,1749569442490,-1286.74,0.00016602,2]
[365263454,1749569442500,-490.0,0.00016602,2]
[365263456,1749569442510,-490.0,0.00016602,2]
[365263458,1749569442519,-490.0,0.00016602,2]
[365263460,1749569442529,-515.66,0.00016602,2]
[365263462,1749569442539,-2786.26,0.00016602,2]
[365263464,1749569442549,-719.69,0.00016602,2]
[365263466,1749569442559,-302.15935811,0.00016602,2]
[365263468,1749569442570,-490.0,0.00016602,2]
[365263470,1749569442580,-490.0,0.00016602,2]
[365263472,1749569442591,-490.0,0.00016602,2]
[365263474,1749569442600,-490.0,0.00016602,2]
[365263476,1749569442610,-2795.16996397,0.00016612,2]
[365263478,1749569442620,-2105.41764886,0.00016627,2]
[365263480,1749569442630,-283.26431866,0.00016667,2]
[365263482,1749569442640,-2183.31810187,0.00016682,2]
[365263484,1749569442650,-2795.16996397,0.00016721,2]
[365263486,1749569442660,-354.51,0.00016733,2]
[365263488,1749569442670,-2264.10087164,0.00016737,2]
[365263490,1749569442679,-431.0,0.00016739,2]
[365263492,1749569442689,-250.0,0.00016752,2]
[365263494,1749569442699,-1483.89,0.00016757,2]
[365263496,1749569442709,-283.26431858,0.00016758,2]
[365263498,1749569442719,-500.0,0.00016766,2]
[365263500,1749569442728,-500.0,0.00016766,2]
[365263502,1749569442740,-431.0,0.00016766,2]
[365263504,1749569442749,-319.39735923,0.00016767,2]
[365263508,1749569442760,-490.0,0.00016767,2]
[365263511,1749569442772,-490.0,0.00016767,2]
[365263513,1749569442782,-397.46,0.00016767,2]
[365263515,1749569442791,-490.0,0.00016767,2]
[365263517,1749569442801,-490.0,0.00016767,2]
[365263519,1749569442811,-490.0,0.00016767,2]
[365263521,1749569442820,-490.0,0.00016767,2]
[365263523,1749569442830,-490.0,0.00016767,2]
[365263525,1749569442839,-490.0,0.00016767,2]
[365263527,1749569442850,-547.17,0.00016767,2]
[365263529,1749569442859,-490.0,0.00016767,2]
[365263531,1749569442870,-247.41,0.00016767,2]
[365263533,1749569442880,-490.0,0.00016767,2]
[365263535,1749569442893,-490.0,0.00016767,2]
[365263538,1749569442903,-490.0,0.00016767,2]
[365263540,1749569442913,-490.0,0.00016767,2]
[365263542,1749569442923,-490.0,0.00016767,2]
[365263544,1749569442934,-490.0,0.00016767,2]
[365263546,1749569442944,-176.52,0.00016767,2]
[365263549,1749569442954,-490.0,0.00016767,2]
[365263551,1749569442964,-490.0,0.00016767,2]
[365263553,1749569442974,-15371.15,0.00016767,2]
[365263555,1749569442985,-490.0,0.00016767,2]
[365263557,1749569442995,-490.0,0.00016767,2]
[365263559,1749569443004,-490.0,0.00016767,2]
[365263561,1749569443013,-490.0,0.00016767,2]
[365263563,1749569443022,-584.73,0.00016767,2]
[365263565,1749569443032,-490.0,0.00016767,2]
[365263567,1749569443042,-490.0,0.00016767,2]
[365263569,1749569443051,-490.0,0.00016767,2]
[365263571,1749569443064,-549.72923485,0.00016767,2]
[365263573,1749569443073,-490.0,0.00016767,2]
[365263575,1749569443082,-490.0,0.00016767,2]
[365263577,1749569443092,-2955.77,0.00016767,2]
[365263580,1749569443102,-776.91,0.00016767,2]
[365263582,1749569443111,-490.0,0.00016767,2]
[365263584,1749569443121,-490.0,0.00016767,2]
[365263586,1749569443130,-490.0,0.00016767,2]
[365263588,1749569443139,-505.97,0.00016767,2]
[365263590,1749569443150,-490.0,0.00016767,2]
[365263592,1749569443159,-490.0,0.00016767,2]
[365263594,1749569443169,-490.0,0.00016767,2]
[365263596,1749569443178,-490.0,0.00016767,2]
[365263598,1749569443187,-490.0,0.00016767,2]
[365263600,1749569443197,-490.0,0.00016767,2]
[365263602,1749569443206,-488.57,0.00016767,2]
[365263604,1749569443216,-490.0,0.00016767,2]
[365263606,1749569443225,-490.0,0.00016767,2]
[365263608,1749569443237,-490.0,0.00016767,2]
[365263610,1749569443246,-795.69,0.00016767,2]
[365263612,1749569443256,-490.0,0.00016767,2]
[365263614,1749569443266,-490.0,0.00016767,2]
[365263616,1749569443276,-490.0,0.00016767,2]
[365263618,1749569443285,-490.0,0.00016767,2]
[365263620,1749569443294,-490.0,0.00016767,2]
[365263622,1749569443303,-490.0,0.00016767,2]
[365263624,1749569443312,-490.0,0.00016767,2]
[365263625,1749569443321,-490.0,0.00016767,2]
[365263628,1749569443331,-1303.13,0.00016767,2]
[365263630,1749569443340,-1484.38,0.00016767,2]
[365263632,1749569443349,-490.0,0.00016767,2]
[365263634,1749569443359,-716.21,0.00016767,2]
[365263636,1749569443369,-553.48,0.00016767,2]
[365263638,1749569443379,-1826.02,0.00016767,2]
[365263640,1749569443389,-684.73,0.00016767,2]
[365263642,1749569443399,-490.0,0.00016767,2]
[365263644,1749569443409,-490.0,0.00016767,2]
[365263647,1749569443418,-594.43893247,0.00016767,2]
[365263679,1749569443710,-165.76106753,0.00016767,2]
[365263681,1749569443719,-393.23126805,0.00016767,2]
[365263683,1749569443728,-1279.26287281,0.00016767,2]
[365263686,1749569443740,-699.58030635,0.00016767,2]
[365263689,1749569443760,-992.08682084,0.00016767,2]
[365263691,1749569443770,-490.0,0.00016767,2]
[365263692,1749569443779,-490.0,0.00016767,2]
[365263694,1749569443789,-490.0,0.00016767,2]
[365263697,1749569443799,-490.0,0.00016767,2]
[365263699,1749569443808,-387.19220786,0.00016767,2]
[365263701,1749569443819,-106.54779214,0.00016767,2]
[365263703,1749569443829,-572.96,0.00016767,2]
[365263705,1749569443839,-490.0,0.00016767,2]
[365263707,1749569443848,-415.72912436,0.00016767,2]
[365263721,1749569444025,-490.0,0.00016438,2]
[365263722,1749569444034,-467.6002,0.00016438,2]
[365263723,1749569444093,-22.3998,0.00016438,2]
[365263724,1749569444102,-490.0,0.00016602,2]
[365263726,1749569444112,-74.27087564,0.00016767,2]
[365263728,1749569444122,-490.0,0.00016767,2]
[365263730,1749569444131,-490.0,0.00016767,2]
[365263732,1749569444140,-490.0,0.00016767,2]
[365263734,1749569444151,-600.59,0.00016767,2]
[365263736,1749569444161,-490.0,0.00016767,2]
[365263738,1749569444170,-730.91,0.00016767,2]
[365263740,1749569444179,-734.85,0.00016767,2]
[365263742,1749569444188,-490.0,0.00016767,2]
[365263744,1749569444197,-491.44,0.00016767,2]
[365263746,1749569444205,-490.0,0.00016767,2]
[365263748,1749569444215,-490.0,0.00016767,2]
[365263750,1749569444224,-490.0,0.00016767,2]
[365263752,1749569444234,-1286.74,0.00016767,2]
[365263754,1749569444244,-490.0,0.00016767,2]
[365263756,1749569444253,-490.0,0.00016767,2]
[365263758,1749569444263,-209.80774248,0.00016767,2]
[365263765,1749569444316,-280.19225752,0.00016767,2]
[365263767,1749569444325,-515.66,0.00016767,2]
[365263769,1749569444335,-2786.26,0.00016767,2]
[365263771,1749569444345,-719.69,0.00016767,2]
[365263773,1749569444355,-490.0,0.00016767,2]
[365263775,1749569444364,-490.0,0.00016767,2]
[365263777,1749569444373,-490.0,0.00016767,2]
[365263779,1749569444383,-976.761287,0.0001678,2]
[365263781,1749569444392,-2347.87260389,0.00016792,2]
[365263783,1749569444401,-431.0,0.00016794,2]
[365263785,1749569444411,-251.0,0.00016805,3]
[365263787,1749569444420,-431.0,0.00016821,2]
[365263789,1749569444429,-2795.16996397,0.00016831,2]
[365263791,1749569444439,-1448.38846396,0.00016831,2]
[365263967,1749569446156,-490.0,0.00016438,2]
[365263969,1749569446166,-14218.32,0.00016438,2]
[365263971,1749569446175,-490.0,0.00016602,2]
[365263973,1749569446184,-14218.32,0.00016602,2]
[365263975,1749569446194,-14218.32,0.00016767,2]
[365263977,1749569446203,-841.50486731,0.00016831,2]
[365263979,1749569446213,-2434.74389024,0.00016847,2]
[365263981,1749569446223,-431.0,0.00016849,2]
[365263983,1749569446233,-283.26431858,0.0001685,2]
[365263985,1749569446243,-431.0,0.00016876,2]
[365263987,1749569446253,-500.0,0.00016891,2]
[365263989,1749569446263,-200.0,0.00016891,2]
[365263991,1749569446272,-2524.82941417,0.00016902,2]
[365263993,1749569446282,-431.0,0.00016903,2]
[365263995,1749569446292,-2289.8933312,0.00016904,2]
[365263997,1749569446301,-507.70935464,0.0001693,2]
[365263999,1749569446310,-500.0,0.0001693,2]
[365264001,1749569446320,-500.0,0.0001693,2]
[365264003,1749569446330,-500.0,0.0001693,2]
[365264005,1749569446339,-251.37427688,0.0001693,2]
[365264007,1749569446348,-431.0,0.00016931,2]
[365264009,1749569446358,-169.93616,0.00016931,2]
[365264011,1749569446367,-169.93616,0.00016931,2]
[365264013,1749569446377,-151.0,0.00016931,2]
[365264015,1749569446386,-490.0,0.00016931,2]
[365264017,1749569446396,-490.0,0.00016931,2]
[365264019,1749569446406,-490.0,0.00016931,2]
[365264021,1749569446415,-490.0,0.00016931,2]
[365264023,1749569446425,-490.0,0.00016931,2]
[365264025,1749569446434,-490.0,0.00016931,2]
[365264027,1749569446444,-490.0,0.00016931,2]
[365264029,1749569446454,-624.24,0.00016931,2]
[365264032,1749569446463,-490.0,0.00016931,2]
[365264034,1749569446473,-490.0,0.00016931,2]
[365264036,1749569446481,-490.0,0.00016931,2]
[365264038,1749569446492,-490.0,0.00016931,2]
[365264040,1749569446501,-490.0,0.00016931,2]
[365264042,1749569446511,-490.0,0.00016931,2]
[365264044,1749569446521,-490.0,0.00016931,2]
[365264045,1749569446531,-490.0,0.00016931,2]
[365264046,1749569446541,-490.0,0.00016931,2]
[365264047,1749569446551,-490.0,0.00016931,2]
[365264048,1749569446561,-584.73,0.00016931,2]
[365264049,1749569446570,-497.16,0.00016931,2]
[365264050,1749569446579,-490.0,0.00016931,2]
[365264051,1749569446589,-490.0,0.00016931,2]
[365264052,1749569446600,-490.0,0.00016931,2]
[365264053,1749569446609,-2955.77,0.00016931,2]
[365264054,1749569446619,-776.91,0.00016931,2]
[365264055,1749569446629,-490.0,0.00016931,2]
[365264057,1749569446639,-490.0,0.00016931,2]
[365264058,1749569446648,-490.0,0.00016931,2]
[365264061,1749569446658,-505.97,0.00016931,2]
[365264062,1749569446667,-604.86,0.00016931,2]
[365264064,1749569446676,-490.0,0.00016931,2]
[365264066,1749569446686,-490.0,0.00016931,2]
[365264068,1749569446695,-490.0,0.00016931,2]
[365264070,1749569446705,-490.0,0.00016931,2]
[365264073,1749569446714,-490.0,0.00016931,2]
[365264075,1749569446723,-490.0,0.00016931,2]
[365264077,1749569446733,-490.0,0.00016931,2]
[365264079,1749569446743,-490.0,0.00016931,2]
[365264081,1749569446756,-795.69,0.00016931,2]
[365264083,1749569446765,-490.0,0.00016931,2]
[365264085,1749569446774,-490.0,0.00016931,2]
[365264087,1749569446783,-490.0,0.00016931,2]
[365264089,1749569446793,-490.0,0.00016931,2]
[365264091,1749569446803,-490.0,0.00016931,2]
[365264093,1749569446812,-490.0,0.00016931,2]
[365264095,1749569446822,-490.0,0.00016931,2]
[365264097,1749569446831,-490.0,0.00016931,2]
[365264099,1749569446840,-1303.13,0.00016931,2]
[365264100,1749569446850,-1484.38,0.00016931,2]
[365264102,1749569446863,-490.0,0.00016931,2]
[365264105,1749569446872,-716.21,0.00016931,2]
[365264106,1749569446882,-553.48,0.00016931,2]
[365264108,1749569446891,-1826.02,0.00016931,2]
[365264110,1749569446901,-684.73,0.00016931,2]
[365264113,1749569446911,-490.0,0.00016931,2]
[365264114,1749569446920,-490.0,0.00016931,2]
[365264117,1749569446930,-760.2,0.00016931,2]
[365264118,1749569446940,-2970.93,0.00016931,2]
[365264121,1749569446950,-490.0,0.00016931,2]
[365264123,1749569446960,-490.0,0.00016931,2]
[365264125,1749569446970,-490.0,0.00016931,2]
[365264127,1749569446980,-490.0,0.00016931,2]
[365264129,1749569446991,-493.74,0.00016931,2]
[365264131,1749569447000,-572.96,0.00016931,2]
[365264132,1749569447010,-314.73,0.00016931,2]
[365264134,1749569447020,-518.29,0.00016931,2]
[365264136,1749569447029,-490.0,0.00016931,2]
[365264138,1749569447038,-490.0,0.00016931,2]
[365264141,1749569447047,-490.0,0.00016931,2]
[365264143,1749569447057,-600.59,0.00016931,2]
[365264144,1749569447067,-490.0,0.00016931,2]
[365264146,1749569447080,-730.91,0.00016931,2]
[365264149,1749569447089,-734.85,0.00016931,2]
[365264150,1749569447098,-490.0,0.00016931,2]
[365264153,1749569447109,-491.44,0.00016931,2]
[365264154,1749569447118,-490.0,0.00016931,2]
[365264156,1749569447127,-490.0,0.00016931,2]
[365264158,1749569447136,-490.0,0.00016931,2]
[365264160,1749569447145,-1286.74,0.00016931,2]
[365264162,1749569447156,-490.0,0.00016931,2]
[365264164,1749569447166,-490.0,0.00016931,2]
[365264166,1749569447175,-490.0,0.00016931,2]
[365264168,1749569447185,-515.66,0.00016931,2]
[365264170,1749569447194,-34.67514822,0.00016931,2]
[365265945,1749569472345,206.0,0.00015455,2]
[365265946,1749569562430,150.0,0.00016,5]
[365265947,1749569579607,1333.0,0.0002444,120]
[365265948,1749569581672,1000.0,0.00015723,2]
[365265949,1749569699831,554.62,0.00015907,2]
[365265950,1749569727054,150.0,0.00015903,7]
[365265952,1749569904183,375.49,0.00015718,2]
[365265954,1749569933832,886.14,0.00013812,2]
[365265955,1749570012601,241.0,0.00015255,2]
[365265956,1749570012885,241.0,0.00015707,2]
[365265957,1749570065953,9634.02122992,0.00015619,2]
[365265958,1749570065980,14265.97877008,0.00015619,2]
[365265959,1749570121024,183.51530383,0.00015946,20]
[365265961,1749570206541,313.73,0.00013699,2]
[365265962,1749570208356,250.0,0.00015568,2]
[365265964,1749570237585,417.56838131,0.00024657,120]
[365265965,1749570255399,10000.0,0.00024658,120]
[365265966,1749570299324,150.0,0.00015606,2]
[365265967,1749570331132,-886.14,0.00016076,2]
[365265968,1749570331154,-300.0,0.00016093,2]
[365265969,1749570331175,-525.85,0.0001611,2]
[365265970,1749570331198,-300.0,0.00016116,2]
[365265971,1749570331219,-250.0,0.00016124,2]
[365265972,1749570331241,-241.0,0.00016159,3]
[365265973,1749570331262,-500.0,0.00016164,2]
[365265974,1749570331282,-500.0,0.00016164,2]
[365265975,1749570331304,-1000.0,0.00016238,2]
[365265976,1749570331325,-1200.0,0.00016427,2]
[365265977,1749570331344,-300.0,0.00016427,2]
[365265978,1749570331366,-300.0,0.00016427,2]
[365265979,1749570331386,-151.0,0.00016428,2]
[365265980,1749570331409,-151.0,0.00016428,2]
[365265981,1749570331430,-151.0,0.00016428,2]
[365265982,1749570331452,-151.0,0.00016428,2]
[365265983,1749570331472,-151.0,0.00016428,2]
[365265984,1749570331493,-151.0,0.00016428,2]
[365265985,1749570331513,-300.0,0.00016436,2]
[365265986,1749570331535,-500.0,0.00016437,2]
[365265987,1749570331556,-500.0,0.00016437,2]
[365265988,1749570331578,-412.9125533,0.00016437,2]
[365265989,1749570331600,-490.0,0.00016438,2]
[365265990,1749570331622,-490.0,0.00016438,2]
[365265991,1749570331642,-490.0,0.00016438,2]
[365265992,1749570331663,-490.0,0.00016438,2]
[365265993,1749570331684,-490.0,0.00016438,2]
[365265994,1749570331704,-490.0,0.00016438,2]
[365265995,1749570331724,-212.64256851,0.00016438,2]
[365265996,1749570331744,-480.0,0.00016438,2]
[365265997,1749570331765,-490.32581632,0.00016438,2]
[365265998,1749570331785,-480.0,0.00016438,2]
[365265999,1749570331805,-490.0,0.00016438,2]
[365266000,1749570331826,-480.0,0.00016438,2]
[365266001,1749570331846,-490.0,0.00016438,2]
[365266002,1749570331866,-480.0,0.00016438,2]
[365266003,1749570331887,-480.0,0.00016438,2]
[365266004,1749570331908,-488.83298494,0.00016438,2]
[365266005,1749570331929,-490.0,0.00016438,2]
[365266006,1749570331950,-490.0,0.00016438,2]
[365266007,1749570331970,-480.0,0.00016438,2]
[365266008,1749570331990,-486.03057386,0.00016438,2]
[365266009,1749570332011,-490.0,0.00016438,2]
[365266010,1749570332031,-490.0,0.00016438,2]
[365266011,1749570332051,-490.0,0.00016438,2]
[365266012,1749570332071,-480.0,0.00016438,2]
[365266013,1749570332091,-489.98211782,0.00016438,2]
[365266014,1749570332111,-490.0,0.00016438,2]
[365266015,1749570332132,-480.0,0.00016438,2]
[365266016,1749570332153,-490.0,0.00016438,2]
[365266017,1749570332173,-480.0,0.00016438,2]
[365266018,1749570332195,-490.0,0.00016438,2]
[365266019,1749570332215,-480.0,0.00016438,2]
[365266020,1749570332235,-486.68151665,0.00016438,2]
[365266021,1749570332256,-490.0,0.00016438,2]
[365266022,1749570332276,-480.0,0.00016438,2]
[365266023,1749570332296,-480.0,0.00016438,2]
[365266024,1749570332316,-420.0,0.00016438,2]
[365266025,1749570332335,-503.88846495,0.00016438,2]
[365266026,1749570332357,-481.42441416,0.00016438,2]
[365266027,1749570332380,-464.7628477,0.00016438,2]
[365266028,1749570332400,-484.5866159,0.00016438,2]
[365266029,1749570332420,-490.0,0.00016438,2]
[365266030,1749570332442,-484.28248514,0.00016438,2]
[365266031,1749570332463,-480.0,0.00016438,2]
[365266032,1749570332483,-355.21444716,0.00016438,2]
[365266033,1749570332504,-480.0,0.00016438,2]
[365266034,1749570332525,-480.0,0.00016438,2]
[365266035,1749570332545,-485.04961436,0.00016438,2]
[365266036,1749570332567,-484.96849553,0.00016438,2]
[365266037,1749570332587,-480.0,0.00016438,2]
[365266038,1749570332608,-490.0,0.00016438,2]
[365266039,1749570332629,-490.0,0.00016438,2]
[365266040,1749570332650,-480.0,0.00016438,2]
[365266041,1749570332671,-490.0,0.00016438,2]
[365266042,1749570332692,-490.0,0.00016438,2]
[365266043,1749570332713,-490.0,0.00016438,2]
[365266044,1749570332734,-490.0,0.00016438,2]
[365266045,1749570332755,-490.0,0.00016438,2]
[365266046,1749570332775,-490.0,0.00016438,2]
[365266047,1749570332796,-490.0,0.00016438,2]
[365266048,1749570332818,-490.0,0.00016438,2]
[365266049,1749570332839,-490.0,0.00016438,2]
[365266050,1749570332860,-490.0,0.00016438,2]
[365266051,1749570332880,-490.0,0.00016438,2]
[365266052,1749570332901,-490.0,0.00016438,2]
[365266053,1749570332920,-490.0,0.00016438,2]
[365266054,1749570332946,-490.0,0.00016438,2]
[365266055,1749570332968,-490.0,0.00016438,2]
[365266056,1749570332989,-490.0,0.00016438,2]
[365266057,1749570333010,-480.0,0.00016438,2]
[365266058,1749570333031,-480.0,0.00016438,2]
[365266059,1749570333052,-490.0,0.00016438,2]
[365266060,1749570333074,-490.0,0.00016438,2]
[365266061,1749570333096,-490.0,0.00016438,2]
[365266062,1749570333119,-460.0,0.00016438,2]
[365266063,1749570333140,-490.0,0.00016438,2]
[365266064,1749570333161,-490.0,0.00016438,2]
[365266065,1749570333187,-490.0,0.00016438,2]
[365266066,1749570333211,-490.0,0.00016438,2]
[365266067,1749570333233,-490.0,0.00016438,2]
[365266068,1749570333255,-490.0,0.00016438,2]
[365266069,1749570333277,-490.0,0.00016438,2]
[365266070,1749570333298,-490.0,0.00016438,2]
[365266071,1749570333320,-490.0,0.00016438,2]
[365266072,1749570333340,-490.0,0.00016438,2]
[365266073,1749570333364,-499.84,0.00016438,2]
[365266074,1749570333388,-490.0,0.00016438,2]
[365266075,1749570333410,-490.0,0.00016438,2]
[365266076,1749570333433,-439.0,0.00016438,2]
[365266077,1749570333458,-490.0,0.00016438,2]
[365266078,1749570333479,-490.0,0.00016438,2]
[365266079,1749570333500,-490.0,0.00016438,2]
[365266080,1749570333523,-480.0,0.00016438,2]
[365266081,1749570333548,-480.0,0.00016438,2]
[365266082,1749570333571,-490.0,0.00016438,2]
[365266083,1749570333592,-490.0,0.00016438,2]
[365266084,1749570333620,-490.0,0.00016438,2]
[365266085,1749570333647,-1072.29,0.00016438,2]
[365266086,1749570333672,-490.0,0.00016438,2]
[365266087,1749570333700,-490.0,0.00016438,2]
[365266088,1749570333725,-490.0,0.00016438,2]
[365266089,1749570333749,-490.0,0.00016438,2]
[365266090,1749570333774,-490.0,0.00016438,2]
[365266091,1749570333984,-490.0,0.00016438,2]
[365266092,1749570334011,-490.0,0.00016438,2]
[365266093,1749570334038,-490.0,0.00016438,2]
[365266094,1749570334062,-226.2081834,0.00016438,2]
[365266095,1749570334091,-637.17,0.00016438,2]
[365266096,1749570334116,-490.0,0.00016438,2]
[365266097,1749570334141,-490.0,0.00016438,2]
[365266098,1749570334169,-490.0,0.00016438,2]
[365266099,1749570334200,-490.0,0.00016438,2]
[365266100,1749570334225,-490.0,0.00016438,2]
[365266101,1749570334248,-490.0,0.00016438,2]
[365266102,1749570334275,-12475.11,0.00016438,2]
[365266103,1749570334301,-490.0,0.00016438,2]
[365266104,1749570334325,-490.0,0.00016438,2]
[365266105,1749570334348,-490.0,0.00016438,2]
[365266106,1749570334374,-490.0,0.00016438,2]
[365266107,1749570334399,-490.0,0.00016438,2]
[365266108,1749570334424,-490.0,0.00016438,2]
[365266109,1749570334455,-2724.67,0.00016438,2]
[365266110,1749570334479,-490.0,0.00016438,2]
[365266111,1749570334503,-490.0,0.00016438,2]
[365266112,1749570334527,-629.73,0.00016438,2]
[365266113,1749570334551,-490.0,0.00016438,2]
[365266114,1749570334575,-490.0,0.00016438,2]
[365266115,1749570334600,-490.0,0.00016438,2]
[365266116,1749570334625,-490.0,0.00016438,2]
[365266117,1749570334652,-490.0,0.00016438,2]
[365266118,1749570334676,-480.0,0.00016438,2]
[365266119,1749570334703,-490.0,0.00016438,2]
[365266120,1749570334725,-490.0,0.00016438,2]
[365266121,1749570334752,-537.73,0.00016438,2]
[365266122,1749570334775,-490.0,0.00016438,2]
[365266123,1749570334799,-490.0,0.00016438,2]
[365266124,1749570334823,-490.0,0.00016438,2]
[365266125,1749570334846,-490.0,0.00016438,2]
[365266126,1749570334870,-490.0,0.00016438,2]
[365266127,1749570334891,-423.05581244,0.00016438,2]
[365266128,1749570334915,-490.0,0.00016438,2]
[365266129,1749570334941,-647.42,0.00016438,2]
[365266130,1749570334963,-490.0,0.00016438,2]
[365266131,1749570334984,-484.97296897,0.00016438,2]
[365266132,1749570335008,-490.0,0.00016438,2]
[365266133,1749570335034,-490.0,0.00016438,2]
[365266134,1749570335058,-490.0,0.00016438,2]
[365266135,1749570335081,-490.0,0.00016438,2]
[365266136,1749570335104,-490.0,0.00016438,2]
[365266137,1749570335127,-490.0,0.00016438,2]
[365266138,1749570335148,-480.0,0.00016438,2]
[365266139,1749570335173,-490.0,0.00016438,2]
[365266140,1749570335198,-150.0,0.00016438,2]
[365266141,1749570335221,-480.0,0.00016438,2]
[365266142,1749570335244,-150.0,0.00016438,2]
[365266143,1749570335267,-490.0,0.00016438,2]
[365266144,1749570335288,-482.83759925,0.00016438,2]
[365266145,1749570335312,-490.0,0.00016438,2]
[365266146,1749570335337,-1177.92,0.00016438,2]
[365266147,1749570335358,-490.0,0.00016438,2]
[365266148,1749570335384,-490.0,0.00016438,2]
[365266149,1749570335406,-490.0,0.00016438,2]
[365266150,1749570335427,-480.0,0.00016438,2]
[365266151,1749570335453,-490.0,0.00016438,2]
[365266152,1749570335476,-490.0,0.00016438,2]
[365266153,1749570335500,-650.74,0.00016438,2]
[365266154,1749570335523,-373.00869666,0.00016438,2]
[365266155,1749570335544,-490.0,0.00016438,2]
[365266156,1749570335566,-480.0,0.00016438,2]
[365266157,1749570335590,-490.0,0.00016438,2]
[365266158,1749570335613,-583.78572859,0.00016438,2]
[365266159,1749570340191,-416.21427141,0.00016438,2]
[365266160,1749570340213,-490.0,0.00016438,2]
[365266161,1749570340236,-490.0,0.00016438,2]
[365266162,1749570340257,-480.0,0.00016438,2]
[365266163,1749570340280,-490.0,0.00016438,2]
[365266164,1749570340301,-490.0,0.00016438,2]
[365266165,1749570340323,-490.0,0.00016438,2]
[365266166,1749570340344,-490.0,0.00016438,2]
[365266167,1749570340370,-490.0,0.00016438,2]
[365266168,1749570340392,-490.0,0.00016438,2]
[365266169,1749570340414,-490.0,0.00016438,2]
[365266170,1749570340433,-480.0,0.00016438,2]
[365266171,1749570340456,-480.0,0.00016438,2]
[365266172,1749570340476,-490.0,0.00016438,2]
[365266173,1749570340497,-1276.0,0.00016438,2]
[365266174,1749570340518,-490.0,0.00016438,2]
[365266175,1749570340538,-480.0,0.00016438,2]
[365266176,1749570340558,-480.0,0.00016438,2]
[365266177,1749570340578,-480.0,0.00016438,2]
[365266178,1749570340599,-2475.77,0.00016438,2]
[365266179,1749570340621,-490.0,0.00016438,2]
[365266180,1749570340643,-490.0,0.00016438,2]
[365266181,1749570340665,-490.0,0.00016438,2]
[365266182,1749570340685,-490.0,0.00016438,2]